bitfinex/quotes_BTCUSD_20251114
["timestamp","ask_amount","ask_price","bid_price","bid_amount"]
[1763128972183,0.10479654,95239.0,95235.0,0.856578]
[1763128972412,0.10479654,95239.0,95233.0,0.280489]
[1763128972646,0.10479654,95239.0,95225.0,0.2100272]
[1763128972853,0.10479654,95239.0,95224.0,0.573137]
[1763128973067,0.10479654,95239.0,95221.0,0.21003673]
[1763128973272,0.10479654,95239.0,95215.0,0.323]
[1763128973273,0.10479654,95224.0,95215.0,0.21004965]
[1763128973479,0.10479654,95224.0,95211.0,0.406592]
[1763128973480,0.04791,95216.0,95212.0,0.581869]
[1763128973692,0.04791,95216.0,95211.0,0.420336]
[1763128973904,0.04791,95223.0,95213.0,0.124805]
[1763128974102,0.04791,95223.0,95208.0,0.340351]
[1763128974304,0.04791,95223.0,95211.0,0.323]
[1763128974582,0.04791,95223.0,95212.0,0.111805]
[1763128974787,0.04791,95212.0,95205.0,0.210073]
[1763128974992,0.10479654,95209.0,95208.0,0.142701]
[1763128975241,0.10479654,95209.0,95208.0,0.642701]
[1763128975653,0.10479654,95209.0,95208.0,0.5]
[1763128975859,0.10479654,95209.0,95208.0,0.60972]
[1763128976293,0.10479654,95209.0,95208.0,0.60985657]
[1763128976529,0.04791,95223.0,95221.0,0.21003759]
[1763128976738,0.10479654,95239.0,95209.0,0.450672]
[1763128976739,0.02155794,95233.0,95211.0,1.495282]
[1763128976942,0.10479654,95239.0,95222.0,0.0006]
[1763128977147,0.10479654,95239.0,95226.0,0.323]
[1763128977319,0.10479654,95239.0,95233.0,0.2100108]
[1763128977526,0.10479654,95239.0,95229.0,1.038229]
[1763128977527,0.15270654,95239.0,95234.0,0.300364]
[1763128977705,0.10479654,95239.0,95238.0,0.441012]
[1763128977912,0.10479654,95239.0,95236.0,0.2100022]
[1763128977913,0.15270654,95239.0,95236.0,0.604]
[1763128978110,0.15270654,95239.0,95223.0,0.557787]
[1763128978295,0.15270654,95239.0,95234.0,0.21000859]
[1763128978496,0.15270654,95239.0,95235.0,0.5]
[1763128978714,0.10479654,95256.0,95242.0,0.20999111]
[1763128978946,0.02624534,95255.0,95242.0,0.20999111]
[1763128979355,0.02624534,95255.0,95243.0,0.20998861]
[1763128979562,0.02624534,95255.0,95242.0,0.20999111]
[1763128980202,0.02624534,95255.0,95238.0,0.21000021]
[1763128980331,0.02624534,95255.0,95239.0,0.235489]
[1763128980531,0.10479654,95241.0,95240.0,0.20999548]
[1763128980738,0.10479654,95241.0,95240.0,0.42743648]
[1763128980934,0.10479654,95241.0,95226.0,0.323]
[1763128981301,0.10479654,95241.0,95221.0,0.793501]
[1763128981632,0.0095,95240.0,95228.0,0.323]
[1763128981807,0.03093339,95240.0,95229.0,0.630373]
[1763128982010,0.0095,95240.0,95235.0,0.21000607]
[1763128982231,0.0095,95250.0,95245.0,0.20998406]
[1763128982444,0.10525169,95256.0,95255.0,0.20996273]
[1763128982654,0.00045515,95256.0,95255.0,0.77757573]
[1763128983492,0.85288548,95300.0,95250.0,0.21057341]
[1763128983493,0.10479654,95277.0,95275.0,0.20991838]
[1763128983689,0.10493306,95277.0,95276.0,0.064]
[1763128983925,0.10493306,95277.0,95276.0,0.16243]
[1763128983926,0.00038381,95277.0,95276.0,0.16243]
[1763128984147,0.00038381,95277.0,95276.0,0.603682]
[1763128984321,0.00038381,95277.0,95276.0,0.217034]
[1763128984748,0.00038381,95277.0,95264.0,0.25507139]
[1763128984954,0.00038381,95277.0,95276.0,0.786212]
[1763128985202,0.00038381,95277.0,95276.0,0.545212]
[1763128985468,0.00038381,95277.0,95276.0,0.545252]
[1763128985926,0.00038381,95277.0,95276.0,0.58871074]
[1763128986545,0.00038381,95277.0,95276.0,0.58875074]
[1763128986973,0.00038381,95277.0,95276.0,0.58879074]
[1763128987960,0.0002,95340.0,95276.0,0.58879074]
[1763128987961,0.02642194,95340.0,95323.0,0.20981295]
[1763128988165,0.104933,95324.0,95323.0,0.30036295]
[1763128988569,0.104933,95324.0,95323.0,0.09055]
[1763128989090,0.104933,95324.0,95323.0,0.02981]
[1763128989662,0.104933,95324.0,95315.0,0.04674]
[1763128989868,0.0095,95310.0,95306.0,0.20984977]
[1763128990070,0.104933,95324.0,95316.0,0.20982633]
[1763128990276,0.104933,95324.0,95309.0,0.20984377]
[1763128990488,0.104933,95324.0,95312.0,0.323]
[1763128990718,0.00013646,95324.0,95323.0,2.42167195]
[1763128990917,0.00013646,95324.0,95323.0,2.52583069]
[1763128991127,0.00013646,95324.0,95323.0,2.46509069]
[1763128991550,0.0002,95340.0,95332.0,0.06074]
[1763128991762,0.0002,95340.0,95323.0,2.33423139]
[1763128991763,0.0002,95340.0,95339.0,2.53277774]
[1763128991961,0.0002,95340.0,95339.0,2.59351774]
[1763128992168,0.10165557,95378.0,95359.0,0.06074]
[1763128992371,0.10165557,95378.0,95362.0,2.0]
[1763128992372,0.10479654,95377.0,95362.0,2.0]
[1763128992569,0.10479654,95377.0,95360.0,0.85288548]
[1763128992570,0.0004547,95378.0,95373.0,0.323]
[1763128992771,0.0004547,95378.0,95377.0,0.905855]
[1763128993133,0.0004547,95378.0,95377.0,0.668115]
[1763128993484,0.0004547,95378.0,95377.0,0.601115]
[1763128994979,0.0004547,95378.0,95377.0,0.64453374]
[1763128995620,0.0004547,95378.0,95377.0,0.65502562]
[1763128995843,0.0002,95400.0,95399.0,0.5326458]
[1763128996106,0.00033643,95400.0,95399.0,2.5933858]
[1763128996333,0.00033643,95400.0,95399.0,2.57606454]
[1763128996989,0.10479654,95448.0,95424.0,0.323]
[1763128997202,0.00033633,95440.0,95427.0,1.328054]
[1763128997410,0.00033633,95440.0,95439.0,0.03244]
[1763128997626,0.00033633,95440.0,95430.0,0.04674]
[1763128997841,0.10479654,95433.0,95432.0,0.11507]
[1763128998052,0.00033633,95440.0,95432.0,0.11507]
[1763128998282,0.00033633,95440.0,95434.0,0.170465]
[1763128998504,0.10479654,95433.0,95422.0,0.323]
[1763128998728,0.10479654,95433.0,95402.0,0.20963881]
[1763128998729,0.10479654,95433.0,95409.0,0.04674]
[1763128998951,0.10479654,95433.0,95399.0,0.03244]
[1763128998952,0.10479654,95418.0,95400.0,0.15774718]
[1763128999172,0.10479654,95433.0,95402.0,0.734193]
[1763128999173,0.10479654,95416.0,95402.0,0.734193]
[1763128999376,0.10479654,95416.0,95405.0,0.360247]
[1763128999612,0.10479654,95416.0,95415.0,0.06074]
[1763129000021,0.0095,95430.0,95415.0,0.06074]
[1763129000236,0.10479654,95416.0,95415.0,0.06074]
[1763129000457,0.10479654,95416.0,95409.0,0.5]
[1763129000670,0.0095,95410.0,95400.0,0.127256]
[1763129000845,0.10479654,95401.0,95399.0,0.03244]
[1763129001128,0.10479654,95401.0,95383.0,0.09064]
[1763129001336,0.10479654,95401.0,95398.0,0.123565]
[1763129001538,0.10479654,95401.0,95400.0,0.06074]
[1763129002170,0.10479654,95418.0,95401.0,0.04674]
[1763129002378,0.10479654,95417.0,95409.0,0.06074]
[1763129002725,0.10479654,95417.0,95407.0,0.323]
[1763129002726,0.10479654,95417.0,95411.0,0.323]
[1763129002976,0.0001363,95418.0,95417.0,0.53260625]
[1763129003590,0.0001363,95418.0,95417.0,0.323]
[1763129003786,0.0001363,95418.0,95386.0,0.5]
[1763129003980,0.0001363,95418.0,95402.0,0.622598]
[1763129003981,0.10479654,95417.0,95402.0,0.622598]
[1763129004209,0.0001363,95418.0,95404.0,0.834125]
[1763129004210,0.10479654,95416.0,95404.0,0.834125]
[1763129004394,0.10479654,95416.0,95414.0,0.20961098]
[1763129004639,0.0001363,95418.0,95417.0,1.288314]
[1763129004799,0.0001363,95418.0,95417.0,0.439065]
[1763129004965,0.0040042,95418.0,95417.0,0.439065]
[1763129005380,0.0040042,95418.0,95417.0,0.64867125]
[1763129006064,0.0040042,95418.0,95417.0,0.69208999]
[1763129006409,0.0002,95440.0,95417.0,0.69208999]
[1763129006410,0.0002,95440.0,95439.0,2.53255793]
[1763129006613,0.0002,95440.0,95439.0,2.59329793]
[1763129006985,0.0002,95440.0,95439.0,2.53255793]
[1763129007120,0.0002,95440.0,95439.0,2.57597667]
[1763129007324,0.0002,95460.0,95459.0,2.53251403]
[1763129007528,0.0003363,95460.0,95459.0,2.63667277]
[1763129007731,0.0003363,95460.0,95459.0,2.57593277]
[1763129007930,0.0003363,95460.0,95459.0,2.08014]
[1763129008138,0.0003363,95460.0,95459.0,0.96303227]
[1763129008333,0.0003363,95460.0,95459.0,1.00645101]
[1763129008720,0.0002,95500.0,95491.0,0.323]
[1763129008921,0.10525099,95499.0,95498.0,0.04674]
[1763129009121,0.10574099,95499.0,95491.0,0.323]
[1763129009328,0.10574099,95499.0,95400.0,0.0749387]
[1763129009329,0.10479654,95463.0,95446.0,0.04674]
[1763129009556,0.0095,95460.0,95447.0,0.53332]
[1763129009759,0.08716,95492.0,95460.0,0.01047559]
[1763129009760,0.03815,95492.0,95460.0,0.01047559]
[1763129009966,0.0095,95490.0,95463.0,2.0]
[1763129010219,0.10479654,95499.0,95480.0,0.109056]
[1763129010446,0.10479654,95484.0,95480.0,0.5]
[1763129010654,0.10479654,95484.0,95480.0,0.1167]
[1763129010861,0.10479654,95484.0,95480.0,0.03083274]
[1763129011077,0.00045445,95499.0,95480.0,0.03083274]
[1763129011273,0.00045445,95499.0,95483.0,1.075373]
[1763129011580,0.00045445,95499.0,95491.0,2.0]
[1763129011583,0.10479654,95498.0,95491.0,2.0]
[1763129011786,0.10479654,95498.0,95492.0,0.323]
[1763129012031,0.00045445,95499.0,95495.0,1.09651]
[1763129012277,0.00045445,95499.0,95498.0,0.20942846]
[1763129012485,0.00045445,95499.0,95497.0,1.631517]
[1763129012709,0.00045445,95499.0,95495.0,0.04682]
[1763129012710,0.10479654,95498.0,95495.0,0.04682]
[1763129013432,0.00045445,95499.0,95495.0,0.04682]
[1763129013612,0.10479654,95498.0,95495.0,0.04682]
[1763129013841,0.00045445,95499.0,95496.0,1.137034]
[1763129014040,0.00045445,95499.0,95496.0,0.633625]
[1763129014383,0.00045445,95499.0,95494.0,0.09797]
[1763129014384,0.10479654,95498.0,95490.0,0.323]
[1763129015004,0.10479654,95498.0,95491.0,0.677012]
[1763129015202,0.10479654,95498.0,95491.0,0.117048]
[1763129015416,0.03815,95497.0,95484.0,0.5]
[1763129015612,0.0095,95490.0,95471.0,0.5]
[1763129015818,0.07181723,95497.0,95446.0,0.05723188]
[1763129015819,0.10479654,95474.0,95456.0,0.09797]
[1763129016018,0.10479654,95474.0,95450.0,0.729711]
[1763129016265,0.10479654,95459.0,95447.0,1.494475]
[1763129016590,0.10479654,95459.0,95420.0,0.37551422]
[1763129016591,0.0095,95450.0,95421.0,0.09797]
[1763129016790,0.03803,95458.0,95420.0,0.01047998]
[1763129016791,0.10479654,95442.0,95428.0,0.78267189]
[1763129016986,0.10479654,95442.0,95431.0,0.2095755]
[1763129017203,0.10479654,95442.0,95427.0,0.5]
[1763129017407,0.0095,95430.0,95427.0,0.0001363]
[1763129017607,0.0095,95440.0,95428.0,0.702371]
[1763129017804,0.0095,95440.0,95427.0,0.0001363]
[1763129017805,0.38501422,95440.0,95427.0,0.0001363]
[1763129018019,0.0095,95430.0,95427.0,0.0001363]
[1763129020335,0.38501422,95440.0,95427.0,0.0001363]
[1763129021203,0.0495,95439.0,95427.0,0.0001363]
[1763129021410,0.0095,95430.0,95427.0,0.0001363]
[1763129022048,0.00049,95428.0,95427.0,0.0001363]
[1763129022491,0.00049,95428.0,95390.0,0.01048327]
[1763129022492,0.0095,95410.0,95399.0,0.161145]
[1763129022702,0.00076409,95428.0,95399.0,0.0001363]
[1763129022703,0.10479654,95400.0,95399.0,0.0001363]
[1763129023591,0.11429654,95400.0,95399.0,0.0001363]
[1763129024001,0.10479654,95400.0,95399.0,0.0001363]
[1763129024205,0.10473122,95400.0,95399.0,0.0001363]
[1763129025466,0.11423122,95400.0,95399.0,0.0001363]
[1763129025890,0.10522122,95400.0,95399.0,0.0001363]
[1763129027590,0.43810498,95400.0,95399.0,0.0001363]
[1763129028224,0.42822122,95400.0,95399.0,0.0001363]
[1763129029643,0.42822122,95400.0,95367.0,0.20971452]
[1763129029644,0.0095,95380.0,95367.0,0.20971452]
[1763129030013,0.323,95399.0,95367.0,0.20971452]
[1763129030014,0.10479654,95368.0,95367.0,0.0004547]
[1763129030195,0.10528654,95368.0,95367.0,0.0004547]
[1763129030539,0.10479654,95368.0,95331.0,0.07912797]
[1763129030736,0.0397,95346.0,95342.0,0.20977087]
[1763129030966,0.0397,95346.0,95330.0,0.01048987]
[1763129030967,0.0095,95360.0,95341.0,0.20977229]
[1763129031173,0.10479654,95346.0,95344.0,0.20976496]
[1763129031428,0.0495,95367.0,95358.0,0.20973429]
[1763129031429,0.0095,95360.0,95358.0,0.20973429]
[1763129031603,0.10525032,95368.0,95359.0,0.20973346]
[1763129032322,0.10525032,95368.0,95366.0,0.20971723]
[1763129032570,0.10525032,95368.0,95357.0,0.20973759]
[1763129032749,0.10525032,95368.0,95348.0,0.73797173]
[1763129032908,0.10525032,95368.0,95365.0,0.20971939]
[1763129033136,0.10525032,95368.0,95348.0,0.636848]
[1763129033351,0.10479654,95350.0,95348.0,0.273843]
[1763129033550,0.10479654,95350.0,95349.0,0.53367973]
[1763129033761,0.10479654,95350.0,95349.0,0.41226173]
[1763129033983,0.10479654,95350.0,95340.0,0.01048877]
[1763129033984,0.10479654,95350.0,95346.0,0.323]
[1763129034421,0.0095,95360.0,95357.0,0.20973737]
[1763129034654,0.0095,95360.0,95354.0,0.20974393]
[1763129034854,0.0095,95360.0,95354.0,0.20974338]
[1763129035068,0.0095,95360.0,95357.0,0.20973678]
[1763129035285,0.0095,95360.0,95358.0,0.20973446]
[1763129035495,0.0095,95360.0,95354.0,0.20974338]
[1763129035921,0.0095,95360.0,95355.0,0.20974177]
[1763129036121,0.0095,95360.0,95357.0,0.20973733]
[1763129036358,0.0095,95360.0,95357.0,0.20973665]
[1763129036584,0.10525032,95368.0,95351.0,0.04682]
[1763129036795,0.10479654,95353.0,95352.0,1.08224826]
[1763129037012,0.10479654,95353.0,95351.0,0.38370935]
[1763129037232,0.10479654,95353.0,95352.0,0.199303]
[1763129037439,0.10525032,95368.0,95364.0,0.20972097]
[1763129037714,0.10525032,95368.0,95349.0,0.20975573]
[1763129037933,0.10525032,95368.0,95348.0,0.276556]
[1763129037934,0.10525032,95368.0,95352.0,1.064261]
[1763129038147,0.00045378,95368.0,95366.0,0.20971833]
[1763129038357,0.00045378,95368.0,95367.0,0.267341]
[1763129038769,0.00045378,95368.0,95367.0,0.590341]
[1763129038996,0.00045378,95368.0,95367.0,0.71050644]
[1763129039432,0.37551422,95430.0,95367.0,0.71050644]
[1763129039433,0.09555668,95427.0,95392.0,1.739058]
[1763129039643,0.00024668,95427.0,95410.0,0.600045]
[1763129039854,0.00024668,95427.0,95410.0,0.00013643]
[1763129040053,0.00024668,95427.0,95411.0,0.10741]
[1763129040260,0.00024668,95427.0,95410.0,0.00013643]
[1763129040261,0.09617668,95427.0,95410.0,0.00013643]
[1763129040471,0.09617668,95427.0,95412.0,0.157006]
[1763129040671,0.00024668,95427.0,95414.0,0.20961168]
[1763129040919,0.00024668,95427.0,95412.0,0.654638]
[1763129041123,0.00024668,95427.0,95411.0,0.263373]
[1763129041331,0.00024668,95427.0,95413.0,0.04341874]
[1763129041538,0.00024668,95427.0,95426.0,2.311925]
[1763129041803,0.00024668,95427.0,95426.0,2.35534374]
[1763129042141,0.00024668,95427.0,95426.0,0.88862274]
[1763129042343,0.00024668,95427.0,95426.0,0.48407]
[1763129042749,0.00024668,95427.0,95417.0,0.20960454]
[1763129043141,0.00024668,95427.0,95426.0,0.13906]
[1763129043356,0.00024668,95427.0,95426.0,0.96206]
[1763129043591,0.00024668,95427.0,95426.0,0.50547874]
[1763129043815,0.38551421,95480.0,95443.0,0.36641874]
[1763129043816,0.09153,95480.0,95443.0,0.36641874]
[1763129044028,0.10479654,95461.0,95452.0,0.323]
[1763129044248,0.10479654,95461.0,95454.0,0.323]
[1763129044476,0.0095,95460.0,95437.0,0.323]
[1763129044687,0.10479654,95446.0,95437.0,0.323]
[1763129044906,0.0496,95438.0,95400.0,0.10269218]
[1763129045143,0.10479654,95414.0,95403.0,0.300186]
[1763129045521,0.10479654,95414.0,95400.0,0.37551422]
[1763129045523,0.0095,95430.0,95402.0,0.708913]
[1763129045724,0.10479654,95413.0,95405.0,0.176183]
[1763129046080,0.0095,95430.0,95419.0,0.103292]
[1763129046303,0.0095,95430.0,95407.0,0.20962722]
[1763129046304,0.0206668,95430.0,95407.0,0.20962648]
[1763129046571,0.10479654,95408.0,95402.0,0.5]
[1763129046768,0.10479654,95408.0,95387.0,0.323]
[1763129046977,0.10479654,95408.0,95399.0,0.262347]
[1763129047185,0.10479654,95408.0,95403.0,0.2096364]
[1763129047403,0.10479654,95408.0,95405.0,0.20963161]
[1763129047619,0.10479654,95408.0,95406.0,0.20962886]
[1763129047832,0.10479654,95408.0,95403.0,0.20963642]
[1763129048040,0.10479654,95408.0,95402.0,0.20963916]
[1763129048251,0.10479654,95408.0,95403.0,0.20963542]
[1763129048710,0.10479654,95408.0,95406.0,0.2096292]
[1763129049765,0.10479654,95408.0,95400.0,0.20964195]
[1763129049977,0.10479654,95408.0,95397.0,0.307197]
[1763129050197,0.09054,95426.0,95412.0,0.20961587]
[1763129050198,0.0095,95420.0,95412.0,0.20961587]
[1763129050412,0.00963615,95430.0,95423.0,0.20959167]
[1763129050635,0.00013615,95430.0,95426.0,0.20958579]
[1763129050855,0.00013615,95430.0,95421.0,0.20959601]
[1763129050856,0.00013615,95430.0,95428.0,0.20958162]
[1763129051071,0.00013615,95430.0,95421.0,0.37009]
[1763129051297,0.00013615,95430.0,95400.0,0.74387845]
[1763129051298,0.02012942,95430.0,95400.0,0.01048218]
[1763129051524,0.02012942,95430.0,95421.0,0.323]
[1763129051525,0.00013615,95430.0,95421.0,0.323]
[1763129051834,0.00013615,95430.0,95429.0,1.040994]
[1763129052046,0.0002,95500.0,95446.0,0.323]
[1763129052047,0.04863218,95496.0,95446.0,0.323]
[1763129052264,0.04863218,95496.0,95440.0,0.01047778]
[1763129052265,0.0095,95480.0,95460.0,0.37551422]
[1763129052476,0.10525107,95483.0,95460.0,0.58502386]
[1763129052687,0.10525107,95483.0,95472.0,0.20948392]
[1763129052901,0.00045453,95483.0,95474.0,0.20948111]
[1763129053116,0.00045453,95483.0,95481.0,0.61995383]
[1763129053321,0.00045453,95483.0,95482.0,0.658252]
[1763129053535,0.00045453,95483.0,95482.0,0.314277]
[1763129053739,0.00045453,95483.0,95479.0,0.320691]
[1763129053941,0.00045453,95483.0,95481.0,0.20946424]
[1763129054152,0.10479654,95482.0,95460.0,0.01047559]
[1763129054361,0.10479654,95482.0,95474.0,0.620296]
[1763129054577,0.10479654,95482.0,95464.0,0.04709]
[1763129054778,0.0095,95480.0,95464.0,0.54709]
[1763129054984,0.10479654,95467.0,95466.0,0.323]
[1763129055196,0.0095,95480.0,95468.0,0.323]
[1763129055404,0.01041836,95479.0,95451.0,0.0929]
[1763129055614,0.10479654,95482.0,95454.0,0.323]
[1763129055615,0.10479654,95463.0,95454.0,0.323]
[1763129055818,0.10479654,95463.0,95456.0,0.323]
[1763129056032,0.10479654,95463.0,95462.0,0.43989044]
[1763129056240,0.10479654,95463.0,95435.0,0.20956521]
[1763129056241,0.0095,95460.0,95435.0,0.20956521]
[1763129056450,0.10479654,95445.0,95425.0,0.0929]
[1763129056876,0.10479654,95430.0,95419.0,0.129834]
[1763129057087,0.10479654,95430.0,95419.0,0.617991]
[1763129057299,0.11429654,95430.0,95419.0,0.146991]
[1763129057502,0.10479654,95430.0,95419.0,0.646991]
[1763129057709,0.10479654,95430.0,95420.0,0.261803]
[1763129057910,0.10479654,95430.0,95421.0,0.290551]
[1763129058085,0.10479654,95430.0,95421.0,0.224608]
[1763129058327,0.10479654,95430.0,95421.0,0.43420418]
[1763129058541,0.04149,95444.0,95432.0,0.2095729]
[1763129058749,0.10479654,95445.0,95434.0,0.20956891]
[1763129058954,0.10479654,95445.0,95440.0,0.20955407]
[1763129059157,0.10479654,95445.0,95423.0,0.0929]
[1763129059331,0.10479654,95445.0,95439.0,0.135539]
[1763129059577,0.10479654,95445.0,95438.0,0.5]
[1763129059781,0.10479654,95445.0,95427.0,0.323]
[1763129059984,0.10479654,95445.0,95428.0,0.602556]
[1763129060189,0.10479654,95445.0,95439.0,0.20955702]
[1763129060395,0.04196,95453.0,95442.0,0.20954974]
[1763129060396,0.10479654,95444.0,95442.0,0.20954974]
[1763129060831,0.03989,95461.0,95447.0,0.20953888]
[1763129061052,0.03989,95469.0,95458.0,0.20951464]
[1763129061262,0.03341,95478.0,95455.0,0.20952257]
[1763129061649,0.03341,95478.0,95456.0,0.20951951]
[1763129061884,0.04032,95471.0,95457.0,0.20951651]
[1763129062121,0.37551422,95470.0,95440.0,0.20955444]
[1763129062340,0.10493282,95463.0,95448.0,0.340079]
[1763129062557,0.10493282,95463.0,95457.0,0.20951786]
[1763129062766,0.10493282,95463.0,95458.0,0.20951414]
[1763129062977,0.10493282,95463.0,95461.0,0.20950862]
[1763129063492,0.10493282,95463.0,95461.0,0.20950814]
[1763129063743,0.00013628,95463.0,95461.0,0.20950814]
[1763129063948,0.10479654,95462.0,95456.0,0.323]
[1763129064162,0.10479654,95462.0,95461.0,0.41048164]
[1763129064383,0.10479654,95462.0,95460.0,0.323]
[1763129064606,0.00013628,95463.0,95461.0,0.20950806]
[1763129064819,0.00013628,95463.0,95462.0,0.66652374]
[1763129066932,0.00013628,95463.0,95462.0,0.323]
[1763129067353,0.00112259,95463.0,95462.0,0.323]
[1763129067557,0.00112259,95463.0,95462.0,0.363]
[1763129067768,0.00112259,95463.0,95462.0,0.04]
[1763129067976,0.00112259,95463.0,95462.0,0.20685]
[1763129069882,0.00112259,95463.0,95462.0,0.62275]
[1763129070098,0.00112259,95463.0,95462.0,0.52985]
[1763129071680,0.00112259,95463.0,95462.0,0.57326874]
[1763129071911,0.0002,95500.0,95462.0,0.57326874]
[1763129071912,0.0002,95500.0,95499.0,0.20942627]
[1763129072125,0.00065417,95500.0,95499.0,0.75223527]
[1763129072546,0.00166729,95500.0,95499.0,0.75223527]
[1763129072771,1e-08,95500.0,95499.0,1.11865401]
[1763129073853,0.0981797,95532.0,95500.0,0.0104712]
[1763129074067,0.05741524,95532.0,95531.0,0.20935612]
[1763129074283,0.05741524,95532.0,95531.0,0.54200583]
[1763129074526,0.00013625,95532.0,95531.0,0.72976983]
[1763129074957,0.00013625,95532.0,95531.0,0.65176983]
[1763129075389,0.00013625,95532.0,95531.0,0.69518857]
[1763129075614,0.00013625,95532.0,95531.0,0.65176983]
[1763129075869,0.00013625,95532.0,95531.0,0.60311883]
[1763129076075,0.00013625,95532.0,95531.0,0.60536483]
[1763129076511,0.00013625,95532.0,95531.0,0.57126483]
[1763129077180,0.00013625,95532.0,95531.0,0.61468357]
[1763129078294,0.00013625,95532.0,95531.0,0.11690871]
[1763129078516,0.01250069,95540.0,95539.0,0.20933859]
[1763129078744,0.01250069,95540.0,95539.0,0.61252071]
[1763129078976,0.01250069,95540.0,95539.0,0.50964971]
[1763129079202,0.01250069,95540.0,95539.0,0.00964971]
[1763129079203,0.02270069,95540.0,95539.0,0.00964971]
[1763129079412,0.12749723,95540.0,95539.0,0.00964971]
[1763129080062,0.11729723,95540.0,95539.0,0.00961018]
[1763129080277,0.01250069,95540.0,95539.0,0.00961018]
[1763129080487,0.01359529,95540.0,95539.0,0.33260977]
[1763129080695,0.01359529,95540.0,95539.0,0.86282777]
[1763129081124,0.01359529,95540.0,95539.0,0.90624651]
[1763129081546,0.01359529,95540.0,95539.0,0.98569676]
[1763129082469,0.01359529,95540.0,95539.0,0.82824651]
[1763129082685,0.01359529,95540.0,95539.0,0.90574995]
[1763129082903,0.0011,95550.0,95549.0,2.25273542]
[1763129083118,0.0011,95550.0,95549.0,1.45901519]
[1763129083824,0.0011,95550.0,95549.0,1.39683519]
[1763129084464,0.0011,95550.0,95549.0,1.71983519]
[1763129085553,0.0002,95560.0,95559.0,0.20929478]
[1763129085766,0.0002,95560.0,95559.0,2.21890455]
[1763129086456,0.0002,95590.0,95559.0,2.21890455]
[1763129086457,0.0002,95590.0,95572.0,2.57568505]
[1763129086671,0.00022617,95573.0,95572.0,2.58529482]
[1763129086887,0.00022617,95573.0,95572.0,2.46415908]
[1763129087136,0.00022617,95573.0,95572.0,0.39407708]
[1763129087336,0.00022617,95573.0,95572.0,0.00960977]
[1763129087555,0.00022617,95573.0,95554.0,0.5]
[1763129087765,0.00022617,95573.0,95543.0,0.0987]
[1763129087766,0.10479654,95559.0,95555.0,0.00957088]
[1763129087976,0.10479654,95559.0,95552.0,0.5]
[1763129087977,0.10479654,95559.0,95556.0,0.50957088]
[1763129088191,0.06869,95572.0,95533.0,0.0987]
[1763129088192,0.04269,95572.0,95565.0,0.20928072]
[1763129088433,0.04269,95572.0,95566.0,0.20927881]
[1763129088637,0.00022617,95573.0,95572.0,0.20926631]
[1763129088856,0.00022617,95573.0,95572.0,0.2188403]
[1763129089059,0.00112871,95573.0,95572.0,0.2188403]
[1763129089492,0.00112871,95573.0,95572.0,1.0204143]
[1763129089780,0.00112871,95573.0,95572.0,1.2854143]
[1763129090487,0.00112871,95573.0,95572.0,0.6525043]
[1763129091858,0.00112871,95573.0,95572.0,0.7512043]
[1763129092087,0.00112871,95573.0,95572.0,0.6525043]
[1763129092527,0.00112871,95573.0,95572.0,0.69592304]
[1763129092757,0.0002,95590.0,95572.0,0.69592304]
[1763129093016,0.0002,95590.0,95582.0,0.63784315]
[1763129093218,0.0002,95590.0,95582.0,1.54790014]
[1763129093448,0.0002,95590.0,95582.0,1.48572014]
[1763129094111,0.0002,95590.0,95582.0,1.47614615]
[1763129094767,0.00030762,95583.0,95582.0,1.53832615]
[1763129094985,0.00030762,95583.0,95582.0,1.48663803]
[1763129095432,0.00030762,95583.0,95582.0,1.47614615]
[1763129096546,0.00030762,95583.0,95582.0,0.95012641]
[1763129096971,0.00030762,95583.0,95581.0,0.20924658]
[1763129097199,0.10479654,95582.0,95573.0,0.134981]
[1763129097438,0.00030762,95583.0,95569.0,0.04504]
[1763129097662,0.10479654,95582.0,95581.0,0.2092466]
[1763129097874,0.00030762,95583.0,95582.0,0.259081]
[1763129098730,0.00058104,95583.0,95582.0,0.259081]
[1763129099177,0.00058104,95583.0,95582.0,0.582081]
[1763129099813,0.00058104,95583.0,95582.0,0.680781]
[1763129100250,0.00058104,95583.0,95582.0,0.458827]
[1763129101639,0.00058104,95583.0,95582.0,0.50224574]
[1763129101868,0.0002,95590.0,95589.0,2.53222909]
[1763129102323,0.0002,95590.0,95589.0,2.57564783]
[1763129102534,0.0002,95630.0,95629.0,0.20914157]
[1763129102777,0.0002,95630.0,95629.0,1.31105857]
[1763129103011,0.0002,95640.0,95639.0,2.53211971]
[1763129103237,0.0002,95640.0,95630.0,0.62868156]
[1763129103462,0.0002,95640.0,95619.0,0.323]
[1763129103463,0.10479654,95631.0,95619.0,0.323]
[1763129103684,0.10479654,95631.0,95600.0,0.10131025]
[1763129103685,0.0095,95630.0,95601.0,0.5]
[1763129103895,0.10479654,95614.0,95603.0,0.318471]
[1763129104127,0.10479654,95614.0,95601.0,1.162672]
[1763129104342,0.0095,95620.0,95610.0,0.175266]
[1763129104567,0.10525054,95631.0,95610.0,0.175266]
[1763129104568,0.10525054,95631.0,95610.0,0.62868156]
[1763129104787,0.10525054,95631.0,95620.0,0.62868156]
[1763129105032,0.0095,95630.0,95611.0,0.828208]
[1763129105243,0.10525054,95631.0,95629.0,0.20914059]
[1763129105476,0.000454,95631.0,95630.0,0.20913939]
[1763129105704,0.000454,95631.0,95629.0,0.20913974]
[1763129105932,0.000454,95631.0,95627.0,0.20914487]
[1763129105933,0.10479654,95630.0,95628.0,0.20914295]
[1763129106145,0.000454,95631.0,95630.0,0.47194039]
[1763129106587,0.0002,95640.0,95639.0,0.53211971]
[1763129106809,0.00033611,95640.0,95639.0,2.53211971]
[1763129107031,0.00033611,95640.0,95639.0,0.682632]
[1763129107898,0.0018936,95640.0,95639.0,0.682632]
[1763129108826,0.0018936,95640.0,95639.0,0.451594]
[1763129109052,0.0018936,95640.0,95639.0,0.451634]
[1763129109494,0.0018936,95640.0,95639.0,0.451674]
[1763129109934,0.0018936,95640.0,95639.0,0.451714]
[1763129110150,0.0018936,95640.0,95639.0,0.00012]
[1763129110370,0.0018936,95640.0,95639.0,0.149552]
[1763129110586,0.0018936,95640.0,95639.0,0.649592]
[1763129111023,0.0018936,95640.0,95639.0,0.00016]
[1763129111236,0.0018936,95640.0,95639.0,0.623402]
[1763129111676,0.0018936,95640.0,95639.0,0.00016]
[1763129111896,0.0123036,95640.0,95639.0,0.00016]
[1763129112110,0.0028036,95640.0,95610.0,0.21964052]
[1763129112328,0.10479654,95617.0,95601.0,0.50016]